bitfinex-derivatives/quotes_SOLF0:USTF0_20241010
["timestamp","ask_amount","ask_price","bid_price","bid_amount"]
[1728576568655,3.6105,138.62,138.57,17.34]
[1728576569054,6.26,138.63,138.57,17.34]
[1728576569355,6.26,138.63,138.55,1.4448]
[1728576569544,6.26,138.63,138.58,3.6113]
[1728576569749,3.611,138.6,138.55,1.4448]
[1728576570050,23.6,138.63,138.55,1.4448]
[1728576570454,3.6116,138.58,138.54,2.7027]
[1728576570755,6.26,138.59,138.54,6.3149]
[1728576571055,3.6118,138.57,138.54,6.3149]
[1728576571553,3.6124,138.54,138.53,0.12502]
[1728576571748,23.6,138.59,138.53,0.12502]
[1728576571956,23.6,138.59,138.53,3.73762]
[1728576572153,3.6119,138.56,138.53,0.12502]
[1728576572354,3.65297091,138.56,138.53,0.12502]
[1728576572560,17.34,138.57,138.53,0.12502]
[1728576572752,3.67681112,138.56,138.53,0.12502]
[1728576572954,3.6124,138.54,138.53,0.12502]
[1728576576657,37.57205867,138.55,138.47,0.12502]
[1728576576658,3.6131,138.52,138.47,0.12502]
[1728576576962,37.57205867,138.55,138.47,0.12502]
[1728576576963,9.79205867,138.55,138.47,0.12502]
[1728576577260,3.6131,138.52,138.48,3.6139]
[1728576577857,9.79205867,138.55,138.47,0.12502]
[1728576577858,3.6129,138.53,138.49,3.6137]
[1728576578762,9.79205867,138.55,138.49,3.6137]
[1728576579354,3.6128,138.53,138.49,3.6137]
[1728576579560,9.79205867,138.55,138.47,0.12502]
[1728576579760,3.6132,138.52,138.48,3.6139]
[1728576580460,3.6134,138.51,138.47,3.73922]
[1728576581558,9.79205867,138.55,138.47,3.73922]
[1728576581864,1.4264,138.54,138.47,3.73922]
[1728576582063,29.2064,138.54,138.47,0.12502]
[1728576583265,29.2064,138.54,138.47,3.73932]
[1728576583855,3.6135,138.5,138.47,3.73932]
[1728576584663,6.24,138.51,138.47,3.73932]
[1728576584865,6.24,138.51,138.47,0.12502]
[1728576585468,9.8534,138.51,138.47,3.73912]
[1728576585859,6.24,138.51,138.47,0.12502]
[1728576586067,3.6139,138.49,138.47,0.12502]
[1728576587067,6.24,138.51,138.47,0.12502]
[1728576588473,9.8534,138.51,138.47,3.73912]
[1728576588767,9.8534,138.51,138.47,0.12502]
[1728576588963,9.8534,138.51,138.47,3.73912]
[1728576589370,6.24,138.51,138.47,0.12502]
[1728576591568,3.614,138.48,138.47,0.12502]
[1728576592372,7.26589335,138.48,138.47,0.12502]
[1728576594163,3.614,138.48,138.47,0.12502]
[1728576594474,3.6137,138.5,138.47,0.12502]
[1728576594671,3.6137,138.5,138.47,3.73922]
[1728576594970,3.6138,138.49,138.47,3.73922]
[1728576595569,3.6138,138.49,138.47,0.12502]
[1728576596675,3.614,138.49,138.47,0.12502]
[1728576596971,6.24,138.51,138.47,0.12502]
[1728576597164,3.614,138.48,138.47,0.12502]
[1728576597472,6.24,138.52,138.47,0.12502]
[1728576597874,3.6139,138.49,138.47,0.12502]
[1728576598374,7.22876238,138.48,138.47,0.12502]
[1728576599866,13.46876238,138.48,138.47,0.12502]
[1728576600275,3.6149,138.45,138.42,17.35]
[1728576600580,6.24,138.48,138.43,17.35]
[1728576600970,6.24,138.48,138.45,3.6147]
[1728576601777,6.24,138.48,138.43,17.35]
[1728576601976,9.85610819,138.48,138.44,3.615]
[1728576602181,9.85610819,138.48,138.43,17.35]
[1728576602478,9.85610819,138.48,138.44,3.6149]
[1728576602669,9.85610819,138.48,138.43,17.35]
[1728576603071,3.6144,138.47,138.44,3.615]
[1728576603769,6.24,138.48,138.43,17.35]
[1728576604581,3.6144,138.47,138.44,3.6149]
[1728576608170,9.82961896,138.48,138.46,3.6145]
[1728576608171,6.24,138.48,138.46,3.6145]
[1728576608370,6.24,138.48,138.43,17.35]
[1728576609578,9.8541,138.48,138.43,17.35]
[1728576610095,9.8541,138.48,138.46,3.6145]
[1728576610877,6.24,138.48,138.46,3.6145]
[1728576611278,0.12502,138.53,138.47,17.35]
[1728576611583,6.24502,138.53,138.49,17.35]
[1728576611778,0.12502,138.53,138.52,3.613]
[1728576612783,0.12502,138.53,138.52,20.963]
[1728576612985,6.12,138.56,138.54,3.6122]
[1728576613479,3.6115,138.58,138.52,17.35]
[1728576613679,0.12502,138.59,138.54,17.35]
[1728576613883,0.12502,138.59,138.56,17.35]
[1728576614383,0.12502,138.59,138.56,20.9617]
[1728576614887,0.12502,138.59,138.57,3.6114]
[1728576615077,0.12502,138.59,138.56,17.35]
[1728576615878,0.12502,138.59,138.56,20.9618]
[1728576616177,0.12502,138.59,138.56,17.35]
[1728576616386,0.12502,138.59,138.58,3.6114]
[1728576616589,0.12502,138.59,138.58,20.9614]
[1728576616976,9.7302,138.63,138.59,3.6109]
[1728576617278,0.12502,138.65,138.59,17.35]
[1728576617485,3.61,138.64,138.6,3.6107]
[1728576617686,9.77507124,138.65,138.59,17.35]
[1728576618197,3.6102,138.63,138.59,3.611]
[1728576619278,9.77507124,138.65,138.59,3.611]
[1728576619481,27.12507124,138.65,138.56,23.47]
[1728576619676,17.35,138.63,138.56,6.12]
[1728576619875,17.35,138.63,138.55,1.3554]
[1728576620179,17.35,138.63,138.56,3.6118]
[1728576620787,3.611,138.6,138.56,20.9618]
[1728576620983,27.12507124,138.65,138.57,3.6115]
[1728576621299,6.12,138.64,138.6,17.35]
[1728576621789,9.7299,138.64,138.6,17.35]
[1728576622180,9.7299,138.64,138.6,20.9607]
[1728576622379,0.12502,138.65,138.6,20.9607]
[1728576622380,3.73472,138.65,138.6,17.35]
[1728576623092,3.73472,138.65,138.61,3.6105]
[1728576624086,3.6099,138.64,138.61,3.6105]
[1728576624293,0.12502,138.65,138.6,17.35]
[1728576625287,3.6102,138.63,138.59,5.0093]
[1728576626586,3.6104,138.62,138.59,5.0093]
[1728576627394,3.6102,138.63,138.6,3.6107]
[1728576628093,3.6102,138.63,138.6,20.9607]
[1728576629193,3.6102,138.63,138.61,3.6105]
[1728576629690,0.12502,138.65,138.58,18.7392]
[1728576629884,17.47502,138.65,138.58,1.3892]
[1728576630083,17.35,138.63,138.55,18.7054]
[1728576630292,3.6113,138.59,138.56,3.6118]
[1728576630484,6.12,138.62,138.56,3.6118]
[1728576630881,6.12,138.62,138.55,22.3175]
[1728576631796,3.6109,138.6,138.55,22.3175]
[1728576631987,6.12,138.62,138.56,3.6119]
[1728576632499,6.12,138.62,138.55,18.7054]
[1728576632792,17.35,138.59,138.53,0.12502]
[1728576632991,3.6124,138.54,138.53,0.12502]
[1728576634095,9.5724,138.54,138.53,0.12502]
[1728576634391,9.5724,138.54,138.46,17.35]
[1728576634392,23.31,138.54,138.46,17.35]
[1728576634597,5.96,138.54,138.49,17.35]
[1728576634890,9.5726,138.54,138.49,17.35]
[1728576635092,17.35,138.52,138.44,3.6149]
[1728576635797,3.614,138.48,138.44,3.6149]
[1728576636691,3.614,138.48,138.43,7.8329]
[1728576637098,7.16069953,138.48,138.43,4.2176]
[1728576637295,3.6151,138.44,138.36,5.96]
[1728576637598,3.6151,138.44,138.39,3.6163]
[1728576637994,5.96,138.45,138.39,3.6163]
[1728576638194,5.96,138.45,138.38,17.35]
[1728576638802,5.96,138.45,138.38,20.9664]
[1728576638998,5.96,138.45,138.38,17.35]
[1728576639499,3.6151,138.44,138.4,3.6161]
[1728576640805,9.5749,138.45,138.41,3.74082]
[1728576641195,3.6151,138.44,138.41,3.74082]
[1728576641504,5.96,138.45,138.41,0.12502]
[1728576641906,3.6155,138.43,138.41,0.12502]
[1728576642796,3.6156,138.43,138.41,0.12502]
[1728576643195,5.96,138.45,138.41,0.12502]
[1728576643605,3.6156,138.43,138.41,0.12502]
[1728576644499,3.6156,138.42,138.41,0.12502]
[1728576645599,5.96,138.45,138.41,0.12502]
[1728576645805,3.6154,138.43,138.41,0.12502]
[1728576648006,23.31,138.45,138.41,0.12502]
[1728576648309,24.6782,138.45,138.41,0.12502]
[1728576649512,5.98,138.44,138.41,0.12502]
[1728576649907,9.5953,138.44,138.41,0.12502]
[1728576650104,5.98,138.44,138.41,0.12502]
[1728576650605,3.6152,138.44,138.41,0.12502]
[1728576650803,5.98,138.43,138.42,3.6155]
[1728576651004,5.98,138.43,138.41,0.12502]
[1728576653002,9.5955,138.43,138.41,0.12502]
[1728576653711,5.98,138.43,138.41,3.74082]
[1728576654207,5.98,138.43,138.41,0.12502]
[1728576654409,5.98,138.43,138.41,3.74082]
[1728576654711,5.98,138.43,138.41,0.12502]
[1728576654912,5.98,138.43,138.42,3.6156]
[1728576655307,5.98,138.43,138.41,0.12502]
[1728576655610,3.6156,138.42,138.41,0.12502]
[1728576657315,9.5955,138.43,138.41,0.12502]
[1728576657511,5.98,138.43,138.41,0.12502]
[1728576658410,3.6156,138.42,138.41,0.12502]
[1728576659617,5.98,138.43,138.41,0.12502]
[1728576660305,0.12502,138.41,138.23,0.12502]
[1728576660509,17.35,138.37,138.29,3.02612]
[1728576660706,5.98,138.36,138.29,3.02612]
[1728576660902,3.56704877,138.35,138.29,3.02612]
[1728576661323,3.56704877,138.35,138.3,3.6186]
[1728576661324,3.6178,138.34,138.3,3.6186]
[1728576662010,3.54197458,138.33,138.29,0.12502]
[1728576662210,17.35,138.33,138.29,0.12502]
[1728576662414,20.92526314,138.33,138.29,0.12502]
[1728576662816,3.6187,138.3,138.29,0.12502]
[1728576663006,9.5987,138.3,138.29,0.12502]
[1728576663206,5.98,138.3,138.29,0.12502]
[1728576663411,9.5987,138.3,138.29,0.12502]
[1728576664114,5.92,138.32,138.29,0.12502]
[1728576664912,9.5384,138.32,138.29,0.12502]
[1728576665419,17.35,138.37,138.29,0.12502]
[1728576665420,3.6176,138.35,138.3,3.6187]
[1728576665718,5.92,138.34,138.29,0.12502]
[1728576666215,9.5378,138.34,138.29,3.74382]
[1728576667122,3.6179,138.33,138.29,3.74382]
[1728576667820,3.6184,138.32,138.29,0.12502]
[1728576668019,5.92,138.34,138.29,0.12502]
[1728576669116,3.6187,138.3,138.29,0.12502]
[1728576671726,17.35,138.32,138.29,0.12502]
[1728576671727,3.6183,138.32,138.29,0.12502]
[1728576672025,5.92,138.33,138.29,0.12502]
[1728576672421,3.6187,138.3,138.29,0.12502]
[1728576673019,24.6687798,138.3,138.29,0.12502]
[1728576673219,20.9687,138.3,138.29,0.12502]
[1728576673922,24.61231766,138.3,138.29,0.12502]
[1728576675828,3.6199,138.26,138.23,0.12502]
[1728576676227,9.5596,138.27,138.23,3.74532]
[1728576676830,5.94,138.27,138.23,3.74532]
[1728576677131,3.6198,138.26,138.23,0.12502]
[1728576677331,5.94,138.27,138.23,0.12502]
[1728576677525,17.35,138.26,138.23,0.12502]
[1728576677727,3.6203,138.24,138.23,0.12502]
[1728576679630,3.6207,138.23,138.17,1.51622]
[1728576679830,5.94,138.22,138.17,1.51622]
[1728576680140,9.53181396,138.22,138.17,5.13832]
[1728576680328,9.53181396,138.22,138.17,0.12502]
[1728576680828,3.6217,138.19,138.17,0.12502]
[1728576681134,9.53181396,138.22,138.17,0.12502]
[1728576681329,3.6212,138.21,138.17,0.12502]
[1728576681834,9.53181396,138.22,138.17,0.12502]
[1728576682035,3.6212,138.21,138.17,0.12502]
[1728576682226,5.94,138.22,138.17,0.12502]
[1728576682830,17.35,138.26,138.21,3.621]
[1728576683123,9.5602,138.25,138.21,3.621]
[1728576683326,17.35,138.26,138.18,8.6852]
[1728576683630,3.6202,138.25,138.19,18.779]
[1728576684029,3.6202,138.25,138.21,3.621]
[1728576684325,3.6204,138.24,138.19,18.779]
[1728576684939,3.6196,138.27,138.21,17.35]
[1728576685436,3.6196,138.27,138.23,3.6203]
[1728576685837,3.6196,138.27,138.21,17.35]
[1728576686033,96.7837,138.31,138.22,17.35]
[1728576686334,6.06502,138.29,138.24,17.35]
[1728576686733,6.06502,138.29,138.26,3.6196]
[1728576687441,0.12502,138.29,138.26,3.6196]
[1728576687844,0.12502,138.29,138.25,2.828]
[1728576688037,0.12502,138.29,138.27,3.6195]
[1728576688339,0.12502,138.29,138.25,2.828]
[1728576688539,0.12502,138.29,138.28,3.6192]
[1728576688740,0.12502,138.29,138.25,4.2021]
[1728576689140,0.12502,138.29,138.27,3.6193]
[1728576689738,0.12502,138.29,138.25,4.2021]
[1728576689942,0.12502,138.29,138.26,3.6196]
[1728576690536,0.12502,138.29,138.25,4.2021]
[1728576690735,0.12502,138.29,138.27,3.6195]
[1728576691243,0.12502,138.29,138.25,4.2021]
[1728576691441,3.6192,138.28,138.25,7.822]
[1728576692048,0.12502,138.29,138.25,4.2021]
[1728576692345,3.6192,138.28,138.25,4.2021]
[1728576692742,3.6192,138.28,138.25,7.822]
[1728576693541,3.6192,138.28,138.26,3.6198]
[1728576694243,0.12502,138.29,138.26,3.6198]
[1728576694244,3.74412,138.29,138.26,3.6198]
[1728576695744,0.12502,138.29,138.25,4.2021]
[1728576696041,0.12502,138.29,138.27,3.6194]
[1728576697843,0.12502,138.29,138.25,4.2021]
[1728576698142,3.74402,138.29,138.25,4.2021]
[1728576698346,0.12502,138.29,138.26,3.6196]
[1728576699349,3.74412,138.29,138.26,3.6196]
[1728576700843,0.12502,138.29,138.28,3.6192]
[1728576701042,0.12502,138.35,138.28,17.35]
[1728576701248,6.06502,138.35,138.3,17.35]
[1728576701449,3.6181,138.33,138.29,17.35]
[1728576702342,3.6181,138.33,138.3,3.6186]
[1728576702550,3.6181,138.33,138.29,17.35]
[1728576703053,6.06502,138.35,138.29,17.35]
[1728576703746,3.6181,138.33,138.3,3.6187]
[1728576704550,3.6182,138.32,138.29,20.9689]
[1728576705047,3.6182,138.32,138.29,17.35]
[1728576705256,6.06502,138.35,138.3,3.6187]
[1728576705550,3.6179,138.34,138.29,17.35]
[1728576705748,6.06502,138.35,138.29,17.35]
[1728576706147,3.6181,138.33,138.29,17.35]
[1728576706346,3.6181,138.33,138.3,3.6187]
[1728576707151,3.6181,138.33,138.29,17.35]
[1728576707152,3.6178,138.34,138.31,3.6184]
[1728576707450,3.6178,138.34,138.29,17.35]
[1728576707650,3.6178,138.34,138.31,3.6182]
[1728576707651,3.6177,138.34,138.31,3.6182]
[1728576707955,6.06502,138.35,138.29,17.35]
[1728576708344,6.06502,138.35,138.3,17.35]
[1728576708345,3.74262,138.35,138.3,17.35]
[1728576708844,3.74262,138.35,138.32,3.6181]
[1728576709045,0.12502,138.35,138.32,17.35]
[1728576709359,0.12502,138.35,138.33,3.6178]
[1728576710057,0.12502,138.35,138.34,3.6177]
[1728576710356,0.12502,138.35,138.32,17.35]
[1728576710753,0.12502,138.35,138.34,3.6177]
[1728576711246,0.12502,138.35,138.34,20.9677]
[1728576711448,5.94,138.4,138.37,3.6169]
[1728576711951,0.12502,138.41,138.35,17.35]
[1728576712153,0.12502,138.41,138.37,17.35]
[1728576712753,3.66565309,138.41,138.35,23.29]
[1728576713655,3.6162,138.4,138.37,3.6169]
[1728576714047,3.6162,138.4,138.35,23.29]
[1728576714354,3.6162,138.4,138.36,3.617]
[1728576715056,3.66565309,138.41,138.36,3.617]
[1728576715354,3.6164,138.39,138.36,3.617]
[1728576715857,0.12502,138.41,138.35,23.29]
[1728576716158,3.6163,138.4,138.37,3.6168]
[1728576716951,3.6165,138.39,138.36,3.617]
[1728576717160,0.12502,138.41,138.35,23.29]
[1728576717554,0.12502,138.41,138.37,17.35]
[1728576717962,3.6162,138.4,138.37,20.9668]
[1728576718353,0.12502,138.41,138.37,17.35]
[1728576718551,3.74092,138.41,138.38,3.6165]
[1728576720161,3.6165,138.39,138.37,17.35]
[1728576720352,0.12502,138.41,138.37,17.35]
[1728576720859,3.6161,138.4,138.37,20.9667]
[1728576721263,0.12502,138.41,138.37,17.35]
[1728576721465,3.74102,138.41,138.38,3.6166]
[1728576721869,0.12502,138.41,138.39,3.6163]
[1728576722365,0.12502,138.41,138.4,3.6161]
[1728576722658,5.92,138.46,138.39,17.35]
[1728576722864,3.6151,138.44,138.41,20.9656]
[1728576723363,6.04502,138.47,138.41,17.35]
[1728576723661,3.6153,138.43,138.41,17.35]
[1728576724461,3.60988035,138.44,138.37,17.35]
[1728576724675,23.27,138.46,138.37,17.35]
[1728576724962,23.27,138.46,138.37,20.9668]
[1728576725363,23.27,138.46,138.37,17.35]
[1728576725552,23.27,138.46,138.37,20.9668]
[1728576725958,23.27,138.46,138.37,17.35]
[1728576726160,3.616,138.41,138.38,3.6166]
[1728576727362,3.62951112,138.42,138.37,17.35]
[1728576727568,3.616,138.41,138.37,20.9667]
[1728576728465,3.616,138.41,138.38,3.6166]
[1728576729056,3.6161,138.4,138.37,20.9668]
[1728576729675,3.616,138.41,138.38,3.6166]
[1728576731571,3.6155,138.43,138.39,3.6162]
[1728576731877,7.27719695,138.43,138.39,3.6162]
[1728576732272,3.6155,138.43,138.39,17.35]
[1728576732458,3.6154,138.43,138.39,17.35]
[1728576733174,3.6154,138.43,138.4,3.616]
[1728576734967,3.6156,138.42,138.37,20.9669]
[1728576735268,5.92,138.45,138.37,17.35]
[1728576735971,3.6163,138.4,138.37,20.9668]
[1728576736866,3.54704689,138.42,138.36,2.7407]
[1728576737071,5.92,138.41,138.36,2.7407]
[1728576737273,9.579531,138.41,138.36,2.7407]
[1728576737462,3.6168,138.38,138.35,3.74242]
[1728576737669,17.35,138.4,138.35,0.12502]
[1728576738675,3.6171,138.36,138.35,0.12502]
[1728576743468,20.9671,138.36,138.35,0.12502]
[1728576745176,3.6185,138.31,138.3,1.4164]
[1728576746074,3.6185,138.31,138.29,1.54352]
[1728576746465,3.70770226,138.33,138.29,0.12502]
[1728576746668,3.6187,138.3,138.29,0.12502]
[1728576746864,7.2142231,138.3,138.29,0.12502]
[1728576752176,3.0,138.29,138.23,0.12502]
[1728576752381,3.6209,138.22,138.16,21.3666]
[1728576752782,3.6209,138.22,138.18,3.6216]
[1728576753285,5.94,138.24,138.18,17.35]
[1728576753486,5.94,138.24,138.21,3.6209]
[1728576754590,5.94,138.24,138.18,17.35]
[1728576754781,5.94,138.24,138.16,4.0166]
[1728576754987,5.94,138.24,138.16,21.3666]
[1728576755179,3.6213,138.21,138.17,3.74702]
[1728576755682,3.6216,138.2,138.17,0.12502]
[1728576756496,3.6216,138.2,138.17,3.74712]
[1728576757189,5.94,138.24,138.17,0.12502]
[1728576757399,3.6217,138.19,138.17,0.12502]
[1728576758090,5.94,138.24,138.17,0.12502]
[1728576758485,3.6215,138.2,138.17,0.12502]
[1728576758691,5.94,138.24,138.17,0.12502]
[1728576759485,3.621,138.22,138.17,0.12502]
[1728576759985,23.29,138.24,138.17,0.12502]
[1728576760188,3.6212,138.21,138.17,0.12502]
[1728576760381,23.29,138.24,138.18,3.6218]
[1728576760592,23.29,138.24,138.17,0.12502]
[1728576761098,3.6213,138.21,138.17,3.74702]
[1728576761390,23.29,138.24,138.17,3.74702]
[1728576761591,3.6215,138.2,138.17,0.12502]
[1728576764692,5.94,138.21,138.18,11.13]
[1728576765293,3.6213,138.21,138.18,11.13]
[1728576765495,3.6213,138.21,138.18,14.7517]
[1728576766005,3.6215,138.2,138.18,11.13]
[1728576767795,3.61265063,138.25,138.18,11.13]
[1728576768000,8.6393,138.28,138.21,11.13]
[1728576768001,5.94,138.24,138.21,11.13]
[1728576768805,9.5603,138.24,138.21,11.13]
[1728576769502,9.5603,138.24,138.19,14.7515]
[1728576769503,3.6206,138.23,138.19,14.7515]
[1728576769901,5.94,138.24,138.19,14.7515]
[1728576770200,3.6208,138.22,138.19,14.7515]
[1728576770397,5.94,138.24,138.19,14.7515]
[1728576770600,3.6206,138.23,138.19,14.7515]
[1728576771602,5.94,138.24,138.19,14.7515]
[1728576772506,3.6207,138.23,138.19,14.7515]
[1728576775103,3.6209,138.22,138.19,14.7515]
[1728576776299,3.6209,138.22,138.2,11.13]
[1728576776605,5.94,138.24,138.2,11.13]
[1728576777108,3.6208,138.23,138.2,11.13]
[1728576777604,3.6208,138.23,138.2,14.7513]
[1728576779600,9.5604,138.24,138.21,14.751]
[1728576779804,9.5604,138.24,138.21,11.13]
[1728576780113,78.28502,138.29,138.23,11.13]
[1728576780410,3.6195,138.27,138.23,11.13]
[1728576780710,9.5595,138.27,138.24,14.7501]
[1728576780903,9.5595,138.27,138.17,6.06502]
[1728576780904,5.94,138.27,138.17,6.06502]
[1728576781108,3.6199,138.26,138.22,3.6207]
[1728576781420,3.6199,138.26,138.22,14.7507]
[1728576782407,3.6208,138.22,138.19,3.6215]
[1728576782601,5.94,138.27,138.19,3.6215]
[1728576782602,5.94,138.27,138.19,11.13]
[1728576782802,11.13,138.24,138.19,11.13]
[1728576783203,3.6209,138.22,138.19,14.7515]
[1728576784104,17.07,138.23,138.17,0.12502]
[1728576784402,17.05,138.23,138.18,11.13]
[1728576786217,3.6216,138.2,138.17,14.87702]
[1728576786512,11.13,138.22,138.17,11.25502]
[1728576787005,3.6212,138.21,138.17,11.25502]
[1728576787204,11.13,138.22,138.17,11.25502]
[1728576787800,3.6215,138.2,138.17,11.25502]
[1728576790115,3.621,138.22,138.19,14.7516]
[1728576790318,11.13,138.25,138.2,11.13]
[1728576790613,5.94,138.22,138.2,11.13]
[1728576791711,9.5609,138.22,138.19,11.13]
[1728576792609,3.6212,138.21,138.18,14.7517]
[1728576792815,5.94,138.22,138.18,14.7517]
[1728576793319,3.6212,138.21,138.18,14.7517]
[1728576793717,3.6212,138.21,138.19,11.13]
[1728576793913,3.6213,138.2,138.17,14.87702]
[1728576794119,3.6213,138.2,138.17,11.25502]
[1728576794417,3.6217,138.19,138.17,0.12502]
[1728576794613,3.6217,138.19,138.17,11.25502]
[1728576795515,17.07,138.22,138.17,11.25502]
[1728576795720,3.6214,138.2,138.17,14.87702]
[1728576796122,3.6214,138.2,138.17,11.25502]
[1728576797115,17.07,138.22,138.17,11.25502]
[1728576797316,3.6216,138.19,138.17,11.25502]
[1728576797722,17.07,138.22,138.17,11.25502]
[1728576797922,3.6215,138.2,138.17,11.25502]
[1728576800427,3.6215,138.2,138.17,14.87702]
[1728576800620,3.6215,138.2,138.18,11.13]
[1728576801624,4.48490128,138.28,138.19,11.13]
[1728576801920,4.48490128,138.28,138.17,0.12502]
[1728576801921,5.94,138.27,138.23,11.13]
[1728576802126,3.6199,138.26,138.23,11.13]
[1728576802727,5.94,138.27,138.23,11.13]
[1728576803024,3.6201,138.25,138.23,11.13]
[1728576804523,11.13,138.26,138.17,0.12502]
[1728576804828,11.13,138.25,138.2,11.13]
[1728576805018,11.13,138.23,138.18,11.13]
[1728576805219,5.94,138.27,138.17,0.12502]
[1728576805220,17.07,138.22,138.17,11.25502]
[1728576805419,5.94,138.21,138.17,11.25502]
[1728576805620,3.6214,138.2,138.17,11.25502]
[1728576805921,5.94,138.21,138.18,11.13]
[1728576806322,9.5612,138.21,138.18,11.13]
[1728576807121,3.6212,138.21,138.18,11.13]
[1728576809025,3.6212,138.21,138.18,14.7517]
[1728576809429,3.6215,138.2,138.17,0.12502]
[1728576809723,3.6215,138.2,138.17,11.25502]
[1728576811927,5.94,138.22,138.17,0.12502]
[1728576812123,14.71069675,138.21,138.17,0.12502]
[1728576812629,3.6215,138.2,138.18,11.13]
[1728576813931,3.6216,138.19,138.17,0.12502]
[1728576814324,3.6216,138.19,138.18,6.08288955]
[1728576815127,14.7516,138.19,138.18,6.08288955]
[1728576815326,3.6219,138.18,138.17,0.12502]
[1728576815529,3.6219,138.18,138.17,6.21491796]
[1728576815831,9.5419,138.18,138.17,6.21491796]
[1728576816730,5.92,138.18,138.17,6.21491796]
[1728576817326,11.13,138.22,138.17,17.34491796]
[1728576817534,3.6215,138.2,138.18,17.2255113]
[1728576817729,3.6215,138.2,138.18,11.13]
[1728576818929,3.6212,138.21,138.19,6.0964923]
[1728576819131,3.6212,138.21,138.18,14.7518]
[1728576819432,3.6212,138.21,138.19,6.09657212]
[1728576819630,3.6212,138.21,138.18,14.7518]
[1728576820125,1.2732,138.26,138.18,3.6218]
[1728576820327,3.621,138.22,138.19,17.22796838]
[1728576820527,0.8535,138.27,138.19,14.7515]
[1728576820726,9.54,138.26,138.23,11.13]
[1728576821121,5.92,138.26,138.23,11.13]
[1728576821525,3.6198,138.26,138.23,11.13]
[1728576821727,5.92,138.27,138.24,11.13]
[1728576822328,9.5396,138.27,138.24,11.13]
[1728576823535,5.92,138.27,138.24,11.13]
[1728576823830,3.6198,138.26,138.24,11.13]
[1728576825127,5.92,138.27,138.21,1.4453]
[1728576825431,3.62,138.25,138.23,11.13]
[1728576827235,3.6199,138.26,138.23,11.13]
[1728576828639,3.6205,138.24,138.22,11.13]
[1728576830040,3.6208,138.22,138.2,1.4586]
[1728576830227,5.92,138.27,138.19,1.3977]
[1728576830228,11.13,138.23,138.21,6.09714685]
[1728576830433,17.05,138.23,138.19,1.3977]
[1728576830835,11.13,138.22,138.17,0.12502]
[1728576831034,11.13,138.22,138.17,11.25502]
[1728576832041,3.6209,138.22,138.19,11.13]
[1728576832338,17.05,138.23,138.18,14.7518]
[1728576833541,3.6211,138.21,138.18,14.7518]
[1728576833835,3.6211,138.21,138.18,11.13]
[1728576834141,3.6216,138.2,138.18,11.13]
[1728576834442,17.05,138.23,138.18,11.13]
[1728576834642,3.6212,138.21,138.18,11.13]
[1728576835441,3.6213,138.21,138.18,11.13]
[1728576836633,3.6209,138.22,138.18,11.13]
[1728576836942,17.05,138.23,138.18,11.13]
[1728576837541,3.6214,138.2,138.18,11.13]